bitfinex-derivatives/quotes_BTCF0:USTF0_20250716
["timestamp","ask_amount","ask_price","bid_price","bid_amount"]
[1752682646659,0.6076,118930.0,118920.0,0.94142249]
[1752682647261,1.16568,118950.0,118940.0,0.0049]
[1752682647465,0.60524,118950.0,118940.0,0.85733349]
[1752682647857,0.60756,118950.0,118940.0,0.85733349]
[1752682648057,0.00236,118950.0,118940.0,0.92312979]
[1752682648363,0.60752,118950.0,118940.0,0.94039617]
[1752682649256,0.60752,118950.0,118940.0,0.84039617]
[1752682649564,0.60867218,118950.0,118940.0,0.94039617]
[1752682649767,0.60871218,118950.0,118940.0,0.94039617]
[1752682650267,0.77721588,118950.0,118940.0,0.33824048]
[1752682650668,0.77989588,118950.0,118940.0,0.33824048]
[1752682650855,0.78015588,118950.0,118940.0,0.30657048]
[1752682651063,0.61181218,118950.0,118940.0,0.30657048]
[1752682651359,0.61213218,118950.0,118940.0,0.84039617]
[1752682651559,0.61213218,118950.0,118940.0,0.94039617]
[1752682652964,0.00423218,118950.0,118940.0,0.94039617]
[1752682653160,0.61143218,118950.0,118940.0,0.94039617]
[1752682654262,0.61185218,118950.0,118940.0,0.94039617]
[1752682654467,0.60911218,118950.0,118940.0,0.94039617]
[1752682654862,0.61143218,118950.0,118940.0,2.44039617]
[1752682655564,0.61145938,118950.0,118940.0,2.44039617]
[1752682655764,0.77954308,118950.0,118940.0,1.83824048]
[1752682655961,0.68020597,118950.0,118940.0,0.06777638]
[1752682656158,0.1737778,118940.0,118930.0,0.01706276]
[1752682656362,1.17593349,118940.0,118930.0,0.18497466]
[1752682656865,0.6737778,118940.0,118930.0,0.18497466]
[1752682657063,0.67498438,118940.0,118930.0,0.23316466]
[1752682657567,0.67501158,118940.0,118930.0,0.23316466]
[1752682657966,0.67703878,118940.0,118930.0,0.23316466]
[1752682658460,0.67703878,118940.0,118930.0,0.23806466]
[1752682659669,0.50894098,118940.0,118930.0,0.24038466]
[1752682659862,1.11320098,118940.0,118930.0,0.27205466]
[1752682660369,0.50600098,118940.0,118930.0,0.77421035]
[1752682660564,0.61006098,118940.0,118930.0,0.81943954]
[1752682661159,0.00558098,118940.0,118930.0,0.91943954]
[1752682661363,0.60774098,118940.0,118930.0,0.91943954]
[1752682661559,0.60774098,118940.0,118930.0,0.94133204]
[1752682662767,0.60774098,118940.0,118930.0,0.43917635]
[1752682662969,0.60774098,118940.0,118930.0,1.00163766]
[1752682665062,0.60774098,118940.0,118930.0,0.90165766]
[1752682665763,0.60774098,118940.0,118930.0,0.39950197]
[1752682666060,0.60774098,118940.0,118930.0,1.00165766]
[1752682666265,0.60774098,118940.0,118930.0,0.94135204]
[1752682666661,0.60774098,118940.0,118930.0,1.00165766]
[1752682668164,8e-05,118950.0,118940.0,0.1680979]
[1752682668368,8e-05,118950.0,118940.0,0.91889921]
[1752682669070,8e-05,118950.0,118940.0,0.85859359]
[1752682669368,0.6042,118950.0,118940.0,0.85859359]
[1752682669771,0.60663,118950.0,118940.0,0.3564379]
[1752682669963,0.60705,118950.0,118940.0,0.9037491]
[1752682670169,0.00551,118950.0,118940.0,0.9037491]
[1752682670370,0.60955,118950.0,118940.0,0.9037491]
[1752682670675,0.60955,118950.0,118940.0,0.85859359]
[1752682672573,0.60955,118950.0,118940.0,0.91889921]
[1752682672873,0.60955,118950.0,118940.0,0.3564379]
[1752682673176,0.60955,118950.0,118940.0,0.85859359]
[1752682673671,1.30182319,118950.0,118940.0,0.26201951]
[1752682673869,1.30182319,118950.0,118940.0,0.21325951]
[1752682673870,1.4699672,118950.0,118940.0,0.21325951]
[1752682674076,1.9699672,118950.0,118940.0,0.1680979]
[1752682674272,1.9699672,118950.0,118940.0,0.21325951]
[1752682674473,1.46781151,118950.0,118940.0,0.21325951]
[1752682675071,0.6957475,118950.0,118940.0,0.21325951]
[1752682675276,1.2995874,118950.0,118940.0,0.26924951]
[1752682676476,1.2995874,118950.0,118940.0,0.2240879]
[1752682676871,1.2993274,118950.0,118940.0,0.2402879]
[1752682677077,1.1312438,118950.0,118940.0,0.2564379]
[1752682677375,1.2966475,118950.0,118940.0,0.2564379]
[1752682677575,1.2993275,118950.0,118940.0,0.2564379]
[1752682678368,1.2993275,118950.0,118940.0,0.30159951]
[1752682678571,1.2993275,118950.0,118940.0,0.2564379]
[1752682678767,1.2995875,118950.0,118940.0,0.2564379]
[1752682678973,1.2995875,118950.0,118940.0,0.2168579]
[1752682679175,1.2995875,118950.0,118940.0,0.1680979]
[1752682679479,1.80174319,118950.0,118940.0,0.1680979]
[1752682679670,0.173628,118940.0,118930.0,0.42932263]
[1752682679873,0.67604369,118940.0,118930.0,0.06202437]
[1752682680074,0.80212349,118940.0,118930.0,0.1681121]
[1752682680279,0.6739021,118930.0,118920.0,0.04536161]
[1752682680474,1.798284,118930.0,118920.0,0.04516161]
[1752682680675,1.798284,118930.0,118920.0,0.04248161]
[1752682681176,1.798284,118930.0,118910.0,0.26936209]
[1752682681177,0.1681263,118920.0,118910.0,0.26936209]
[1752682681382,0.1688063,118920.0,118910.0,0.32515209]
[1752682681775,0.1688063,118920.0,118910.0,0.28311719]
[1752682681981,0.1688063,118920.0,118910.0,0.28086719]
[1752682682281,0.1688063,118920.0,118910.0,0.27588719]
[1752682682481,0.1688063,118920.0,118910.0,0.06571249]
[1752682682680,0.1688063,118920.0,118910.0,0.23385299]
[1752682683684,0.1688063,118920.0,118910.0,0.23883299]
[1752682683882,0.1688063,118920.0,118910.0,0.24083299]
[1752682684085,0.1688063,118920.0,118910.0,0.25758232]
[1752682684484,0.1688063,118920.0,118910.0,0.25983232]
[1752682685087,0.1688063,118920.0,118910.0,0.24308299]
[1752682685379,0.1688063,118920.0,118910.0,0.30338861]
[1752682685579,0.1685463,118920.0,118910.0,0.33573861]
[1752682685775,0.81322271,118930.0,118920.0,0.2564662]
[1752682685978,0.68713041,118930.0,118920.0,0.2564662]
[1752682686181,0.79061041,118930.0,118920.0,0.75862189]
[1752682686582,0.79061041,118930.0,118920.0,0.2564662]
[1752682687085,0.79087041,118930.0,118920.0,0.2564662]
[1752682687388,0.79061041,118930.0,118920.0,0.2564662]
[1752682688086,0.79087041,118930.0,118920.0,0.2564662]
[1752682690784,0.79061041,118930.0,118920.0,0.2564662]
[1752682693592,0.18671041,118930.0,118920.0,0.75862189]
[1752682693789,0.7718242,118930.0,118920.0,0.75862189]
[1752682693989,0.7718242,118930.0,118920.0,0.2564662]
[1752682695992,0.78879636,118930.0,118920.0,0.2564661]
[1752682696293,0.78853636,118930.0,118920.0,0.2564661]
[1752682696688,0.78853636,118930.0,118920.0,0.75862179]
[1752682697594,0.78853636,118930.0,118920.0,0.2564661]
[1752682698096,0.78853636,118930.0,118920.0,0.08834]
[1752682698294,1.28879636,118930.0,118920.0,0.2241159]
[1752682699703,1.28879636,118930.0,118920.0,0.2168859]
[1752682700204,1.28879636,118930.0,118920.0,0.2214559]
[1752682700502,1.28879636,118930.0,118920.0,0.2237759]
[1752682700702,1.28879636,118930.0,118920.0,0.26905427]
[1752682701194,1.28879636,118930.0,118920.0,0.2237759]
[1752682701390,1.28879636,118930.0,118920.0,0.10093923]
[1752682701595,1.28879636,118930.0,118920.0,0.2214561]
[1752682702199,1.28879636,118930.0,118920.0,0.05333]
[1752682702400,1.28879636,118930.0,118920.0,0.2214561]
[1752682703205,1.28879636,118930.0,118920.0,0.28176172]
[1752682703698,1.28879636,118930.0,118920.0,0.28408172]
[1752682704900,1.28879636,118930.0,118920.0,0.11595562]
[1752682705101,0.1681261,118920.0,118910.0,0.07745811]
[1752682705301,0.67096179,118920.0,118910.0,0.06030562]
[1752682705704,1.17096179,118920.0,118910.0,0.06030562]
[1752682706302,0.6688061,118920.0,118910.0,0.10587562]
[1752682706511,0.6688061,118920.0,118910.0,0.11044562]
[1752682706712,0.6698061,118920.0,118910.0,0.11044562]
[1752682707104,0.6688061,118920.0,118910.0,0.11044562]
[1752682707305,0.6708061,118920.0,118910.0,0.05030562]
[1752682707713,1.17296179,118920.0,118910.0,0.05030562]
[1752682707915,1.29906259,118920.0,118910.0,0.04535362]
[1752682708805,1.46724659,118920.0,118910.0,0.04535362]
[1752682709006,0.1681402,118910.0,118900.0,0.0002]
[1752682709310,0.1681402,118910.0,118890.0,0.05014]
[1752682709311,0.6681544,118900.0,118890.0,0.12572202]
[1752682709511,0.6681544,118900.0,118890.0,0.05014]
[1752682709823,0.1681685,118890.0,118880.0,0.092782]
[1752682710105,1.29024185,118890.0,118880.0,0.01719998]
[1752682710315,0.78808616,118890.0,118880.0,0.01719998]
[1752682710503,1.3046121,118890.0,118880.0,0.01719998]
[1752682710705,1.80676779,118890.0,118880.0,0.01719998]
[1752682711109,1.79024185,118890.0,118880.0,0.01919998]
[1752682711306,1.28808616,118890.0,118880.0,0.23295258]
[1752682711510,1.28808616,118890.0,118880.0,0.06933998]
[1752682712510,1.28808616,118890.0,118880.0,0.2547226]
[1752682712713,1.28808616,118890.0,118880.0,0.2226426]
[1752682713510,1.28808616,118890.0,118880.0,0.2547226]
[1752682716013,1.28808616,118890.0,118880.0,0.08654]
[1752682716210,1.28808616,118890.0,118880.0,0.2547226]
[1752682717117,1.28792616,118890.0,118880.0,0.2547226]
[1752682717420,0.78788616,118890.0,118880.0,0.2547226]
[1752682718417,0.78788616,118890.0,118880.0,0.08654]
[1752682718618,0.78788616,118890.0,118880.0,0.2547226]
[1752682719213,0.78788616,118890.0,118880.0,0.08654]
[1752682719722,0.78788616,118890.0,118880.0,0.2547226]
[1752682720421,0.78788616,118890.0,118880.0,0.08654]
[1752682720619,0.78788616,118890.0,118880.0,0.05446]
[1752682720818,0.78788616,118890.0,118880.0,0.2226426]
[1752682721018,0.78788616,118890.0,118880.0,0.2547226]
[1752682724815,0.18548616,118890.0,118880.0,0.2547226]
[1752682725020,0.61947766,118890.0,118880.0,0.75687829]
[1752682725218,0.61947766,118890.0,118880.0,0.3547226]
[1752682725413,0.78764616,118890.0,118880.0,0.75687829]
[1752682725613,0.78764616,118890.0,118880.0,0.2547226]
[1752682725819,0.61947766,118890.0,118880.0,0.75687829]
[1752682726021,0.78764616,118890.0,118880.0,0.75687829]
[1752682726220,0.61951766,118890.0,118880.0,0.85687829]
[1752682726415,0.18552616,118890.0,118880.0,0.85687829]
[1752682726612,0.78764616,118890.0,118880.0,0.85687829]
[1752682726818,0.18552616,118890.0,118880.0,0.85687829]
[1752682727115,4e-05,118890.0,118880.0,0.85687829]
[1752682727319,0.60212,118890.0,118880.0,0.85687829]
[1752682727520,0.60212,118890.0,118880.0,0.87543132]
[1752682728819,0.7702884,118890.0,118880.0,0.37327563]
[1752682729221,0.7702884,118890.0,118880.0,0.77543132]
[1752682729924,1.27244409,118890.0,118880.0,0.0705]
[1752682730117,1.78949764,118890.0,118880.0,0.002]
[1752682731625,0.68526195,118890.0,118880.0,0.03384]
[1752682731827,1.28722195,118890.0,118880.0,0.05868]
[1752682732027,1.78937764,118890.0,118880.0,0.05868]
[1752682732428,1.28714195,118890.0,118880.0,0.05868]
[1752682732722,1.28714195,118890.0,118880.0,0.2268626]
[1752682732930,1.28714195,118890.0,118880.0,0.07388]
[1752682734022,1.78929764,118890.0,118880.0,0.002]
[1752682736134,1.28714195,118890.0,118880.0,0.002]
[1752682736431,1.78929764,118890.0,118880.0,0.002]
[1752682736932,1.78929764,118890.0,118880.0,0.05167]
[1752682738229,1.78929764,118890.0,118880.0,0.002]
[1752682738728,0.1681826,118880.0,118870.0,0.0002]
[1752682738933,0.1681967,118870.0,118860.0,0.18249917]
[1752682739130,1.77203239,118870.0,118860.0,0.18229917]
[1752682739332,1.78888492,118870.0,118860.0,0.06025606]
[1752682739826,1.78888492,118870.0,118850.0,0.11465606]
[1752682739827,0.1682109,118860.0,118850.0,0.11465606]
[1752682740034,0.67036659,118860.0,118850.0,0.06025606]
[1752682740925,0.168225,118850.0,118840.0,0.07127626]
[1752682741126,1.269865,118850.0,118840.0,0.30498089]
[1752682741327,1.269865,118850.0,118840.0,0.0542]
[1752682741625,1.269865,118850.0,118840.0,0.2224391]
[1752682741826,0.668225,118850.0,118840.0,0.84190952]
[1752682742027,0.7546825,118860.0,118850.0,0.256295]
[1752682742237,0.2126275,118860.0,118850.0,0.75845069]
[1752682742426,0.8142275,118860.0,118850.0,0.256295]
[1752682743027,0.8142275,118860.0,118850.0,0.2562949]
[1752682745834,0.5,118880.0,118870.0,0.2268967]
[1752682746032,0.7597425,118880.0,118870.0,0.85842239]
[1752682746331,0.7597425,118880.0,118870.0,0.84842239]
[1752682746931,0.60156,118880.0,118870.0,0.84842239]
[1752682748837,0.60156,118880.0,118870.0,0.90867845]
[1752682749526,0.01709355,118890.0,118880.0,0.2020525]
[1752682749727,0.1681401,118910.0,118900.0,0.2562242]
[1752682750032,0.6014,118910.0,118900.0,0.85837989]
[1752682750432,0.6014,118910.0,118900.0,0.93762728]
[1752682751236,0.6014,118910.0,118900.0,0.87724817]
[1752682752430,0.6014,118910.0,118900.0,0.93756284]
[1752682752832,0.6014,118910.0,118900.0,0.93956284]
[1752682753031,0.7695401,118910.0,118900.0,0.93956284]
[1752682753235,0.6014,118910.0,118900.0,0.93956284]
[1752682753740,0.6014,118910.0,118900.0,0.94526279]
[1752682754340,0.6014,118910.0,118900.0,1.00557291]
[1752682754641,0.7695401,118910.0,118900.0,0.90557291]
[1752682754841,0.7695401,118910.0,118900.0,0.94526279]
[1752682755437,0.1681401,118910.0,118900.0,0.94526279]
[1752682755747,1.16308,118940.0,118930.0,0.2554518]
[1752682755949,1.9222577,118940.0,118930.0,0.74760749]
[1752682756946,1.9242577,118940.0,118930.0,0.76489814]
[1752682758144,1.75616,118940.0,118930.0,0.76489814]
[1752682759245,1.9242577,118940.0,118930.0,0.76489814]
[1752682759445,1.75616,118940.0,118930.0,0.86489814]
[1752682759846,1.9242577,118940.0,118930.0,0.86489814]
[1752682760944,1.9242577,118940.0,118930.0,0.26274245]
[1752682761147,1.9342577,118940.0,118930.0,0.26274245]
[1752682762147,1.9242577,118940.0,118930.0,0.76489814]
[1752682762451,1.9239376,118940.0,118930.0,0.86489814]
[1752682763146,1.9339376,118940.0,118930.0,0.26274245]
[1752682764048,1.9339376,118940.0,118930.0,0.36274245]
[1752682764445,1.9239376,118940.0,118930.0,0.86489814]
[1752682765349,0.7868576,118940.0,118930.0,0.86489814]
[1752682766046,0.7968576,118940.0,118930.0,0.86489814]
[1752682766447,0.7968576,118940.0,118930.0,0.36274245]
[1752682766848,0.7968576,118940.0,118930.0,0.26274245]
[1752682770055,0.7968576,118940.0,118930.0,0.01729065]
[1752682770350,0.6941142,118930.0,118920.0,0.0002]
[1752682770551,0.1941284,118920.0,118910.0,0.1918025]
[1752682770749,0.7945684,118920.0,118910.0,0.1916025]
[1752682770956,0.7945684,118920.0,118910.0,0.02346]
[1752682771257,0.1941425,118910.0,118900.0,0.32316018]
[1752682771456,0.1941425,118910.0,118900.0,0.34244031]
[1752682771655,0.1941425,118910.0,118900.0,0.35892031]
[1752682771953,0.1681411,118920.0,118910.0,0.02346]
[1752682772159,0.7845283,118920.0,118910.0,0.75763809]
[1752682772356,0.7845283,118920.0,118910.0,0.3554824]
[1752682772559,0.7845283,118920.0,118910.0,0.85763809]
[1752682772759,0.6164,118920.0,118910.0,0.85763809]
[1752682772961,1.1795955,118930.0,118920.0,0.2554683]
[1752682773152,1.7816355,118930.0,118920.0,0.85762399]
[1752682773457,0.6191955,118930.0,118920.0,0.92489894]
[1752682777259,0.6191955,118930.0,118920.0,0.98514243]
[1752682777458,0.6191955,118930.0,118920.0,0.92489894]
[1752682777860,0.6191955,118930.0,118920.0,0.98514243]
[1752682778055,0.6191955,118930.0,118920.0,0.92489894]
[1752682778256,0.6191955,118930.0,118920.0,0.98514243]
[1752682779558,0.60204,118930.0,118920.0,0.98514243]
[1752682779758,0.7701541,118930.0,118920.0,0.98514243]
[1752682780460,0.7701541,118930.0,118920.0,0.92489894]
[1752682780660,0.60204,118930.0,118920.0,0.92489894]
[1752682781162,0.60204,118930.0,118920.0,0.98531567]
[1752682781361,0.60204,118930.0,118920.0,0.92489894]
[1752682781864,0.7701541,118930.0,118920.0,0.42274325]
[1752682782058,0.7701541,118930.0,118920.0,0.92489894]
[1752682782357,0.60204,118930.0,118920.0,0.92489894]
[1752682783054,0.60204,118930.0,118920.0,0.98533179]
[1752682783859,0.7701541,118930.0,118920.0,0.98533179]
[1752682784166,0.7855441,118930.0,118920.0,0.98533179]
[1752682784866,0.7855441,118930.0,118920.0,0.92489894]
[1752682785462,0.2675487,118940.0,118930.0,0.2017141]
[1752682785666,1.38018439,118940.0,118930.0,0.06890174]
[1752682786364,1.38018439,118940.0,118930.0,0.23701594]
[1752682786565,0.8780287,118940.0,118930.0,0.23701594]
[1752682786959,0.8780287,118940.0,118930.0,0.2532242]
[1752682787163,0.8680287,118940.0,118930.0,0.75537989]
[1752682787361,0.61779,118940.0,118930.0,0.75537989]
[1752682787658,0.61783,118940.0,118930.0,0.8158334]
[1752682788362,0.7859301,118940.0,118930.0,0.8158334]
[1752682788763,0.7859701,118940.0,118930.0,0.31367771]
[1752682788962,0.7859701,118940.0,118930.0,0.8158334]
[1752682790069,0.7859701,118940.0,118930.0,0.75537989]
[1752682790269,0.61787,118940.0,118930.0,0.75537989]
[1752682790768,0.60248,118940.0,118930.0,0.75537989]
[1752682791373,0.60248,118940.0,118930.0,0.85537989]
[1752682791576,0.60248,118940.0,118930.0,0.9158334]
[1752682791868,0.78597,118940.0,118930.0,0.9158334]
[1752682792068,0.79597,118940.0,118930.0,0.31367771]
[1752682792570,0.79597,118940.0,118930.0,0.2532242]
[1752682793582,0.78597,118940.0,118930.0,0.2532242]
[1752682793781,0.78597,118940.0,118930.0,0.31367771]
[1752682793974,0.78597,118940.0,118930.0,0.2532242]
[1752682794480,0.78597,118940.0,118930.0,0.31367771]
[1752682794781,0.79597,118940.0,118930.0,0.31367771]
[1752682795178,0.79597,118940.0,118930.0,0.2532242]
[1752682795684,0.79597,118940.0,118930.0,0.31367771]
[1752682795879,0.78597,118940.0,118930.0,0.31367771]
[1752682796583,0.78597,118940.0,118930.0,0.8158334]
[1752682796785,0.61787,118940.0,118930.0,0.8158334]
[1752682797383,0.01743,118940.0,118930.0,0.9158334]
[1752682797581,0.61779,118940.0,118930.0,0.9158334]
[1752682797782,0.6024,118940.0,118930.0,0.9158334]
[1752682797980,0.6024,118940.0,118930.0,1.3339934]
[1752682797981,0.00204,118940.0,118930.0,1.3339934]
[1752682798180,1.8405465,118970.0,118960.0,0.2016714]
[1752682798181,1.16248,118970.0,118960.0,0.2016714]
[1752682798486,1.94785963,118970.0,118960.0,0.77429374]
[1752682798681,1.76284,118970.0,118960.0,0.81962493]
[1752682799083,1.7628,118970.0,118960.0,0.74476833]
[1752682800281,1.16748,118970.0,118960.0,1.27206742]
[1752682800487,0.005,118970.0,118960.0,1.27206742]
[1752682800691,0.005,118970.0,118960.0,1.22673623]
[1752682800886,0.005,118970.0,118960.0,2.72673623]
[1752682801093,0.005,118970.0,118960.0,2.37275412]
[1752682801288,0.005,118970.0,118960.0,2.43319571]
[1752682801488,0.005,118970.0,118960.0,2.37275412]
[1752682801891,0.02563,118980.0,118970.0,0.2531673]
[1752682802088,0.0002,118980.0,118970.0,0.899074]
[1752682802490,0.0002,118980.0,118970.0,0.889074]
[1752682803287,0.0002,118980.0,118970.0,0.38845793]
[1752682803488,0.0002,118980.0,118970.0,0.889074]
[1752682803686,0.1682431,118980.0,118970.0,0.84378337]
[1752682803891,0.0002,118980.0,118970.0,0.84378337]
[1752682804087,0.0002,118980.0,118970.0,0.889074]
[1752682804288,0.0042,118980.0,118970.0,0.889074]
[1752682804790,0.0042,118980.0,118970.0,0.90623019]
[1752682805687,0.1722432,118980.0,118970.0,0.90623019]
[1752682805892,0.0042,118980.0,118970.0,0.90623019]
[1752682808695,0.0022,118980.0,118970.0,0.90623019]
[1752682809299,0.00224,118980.0,118970.0,0.90623019]
[1752682809496,0.00224,118980.0,118970.0,0.86093956]
[1752682809696,0.00224,118980.0,118970.0,0.93632721]
[1752682810298,0.00224,118980.0,118970.0,0.99661675]
[1752682810496,4e-05,119000.0,118990.0,0.253139]
[1752682810697,0.60012,119000.0,118990.0,0.81763852]
[1752682811196,4e-05,119000.0,118990.0,0.87244413]
[1752682811501,4e-05,119000.0,118990.0,0.93273367]
[1752682811696,0.00204,119000.0,118990.0,0.93273367]
[1752682812596,0.00204,119000.0,118990.0,0.87244413]
[1752682812800,0.00204,119000.0,118990.0,0.93273367]
[1752682815299,0.00204,119000.0,118990.0,1.00070677]
[1752682815497,0.00204,119000.0,118990.0,0.94041723]
[1752682815698,0.1700548,119000.0,118990.0,0.44058116]
[1752682815899,0.1701248,119000.0,118990.0,0.38566587]
[1752682817192,0.6701648,119000.0,118990.0,0.35128587]
[1752682817595,0.6701248,119000.0,118990.0,0.38647587]
[1752682817805,0.6701248,119000.0,118990.0,0.88709194]
[1752682818305,0.7700447,119000.0,118990.0,0.98709194]
[1752682818603,0.7700447,119000.0,118990.0,0.88709194]
[1752682818999,0.60196,119000.0,118990.0,0.98709194]
[1752682819899,0.00204,119000.0,118990.0,0.98709194]
[1752682823807,0.00204,119000.0,118990.0,0.98700121]
[1752682824407,0.00204,119000.0,118990.0,0.98695169]
[1752682824905,0.00204,119000.0,118990.0,0.9419165]
[1752682825304,0.00204,119000.0,118990.0,1.00220604]
[1752682826108,0.00204,119000.0,118990.0,0.9419165]
[1752682826411,0.00204,119000.0,118990.0,1.00220604]
[1752682826806,0.68850897,119040.0,119030.0,0.03972]
[1752682827009,0.77826897,119040.0,119030.0,0.74657847]
[1752682827208,0.79054897,119040.0,119030.0,0.07158]
[1752682827414,0.79054897,119040.0,119030.0,0.2395523]
[1752682827712,0.79054897,119040.0,119030.0,0.2559623]
[1752682828111,0.79054897,119040.0,119030.0,0.75657837]
[1752682828112,0.77846897,119040.0,119030.0,0.75657837]
[1752682829216,0.78146897,119040.0,119030.0,0.75657837]
[1752682829713,0.79150897,119040.0,119030.0,0.75657837]
[1752682829902,0.79150897,119040.0,119030.0,0.27093142]
[1752682831116,0.1990124,119030.0,119020.0,0.053]
[1752682831309,0.1990265,119020.0,119010.0,0.0002]
[1752682831616,0.1990406,119010.0,119000.0,0.09808564]
[1752682831815,1.29949667,119010.0,119000.0,0.04508564]
[1752682832708,0.7988806,119010.0,119000.0,0.21310034]
[1752682832909,0.7988806,119010.0,119000.0,0.26940034]
[1752682833115,0.7968006,119010.0,119000.0,0.30209034]
[1752682833316,0.1992406,119010.0,119000.0,0.26940034]
[1752682833515,0.7988406,119010.0,119000.0,0.10138564]
[1752682833717,0.7988406,119010.0,119000.0,0.26690034]
[1752682834222,0.7988406,119010.0,119000.0,0.0538]
[1752682834411,0.7988406,119010.0,119000.0,0.09888564]
[1752682834608,0.7988406,119010.0,119000.0,0.26690034]
[1752682834818,0.7988406,119010.0,119000.0,0.28185786]
[1752682836616,0.7968006,119010.0,119000.0,0.31704786]
[1752682837513,0.7867606,119010.0,119000.0,0.31704786]
[1752682838121,0.7968006,119010.0,119000.0,0.31704786]
[1752682839122,0.7677606,119010.0,119000.0,0.91766393]
[1752682839324,0.7677606,119010.0,119000.0,0.87257829]
[1752682839520,0.59972,119010.0,119000.0,0.87257829]
[1752682839720,0.0002,119010.0,119000.0,0.93286783]
[1752682840311,0.0002,119010.0,119000.0,0.87257829]
[1752682840621,0.0002,119010.0,119000.0,0.94796594]
[1752682842621,0.0002,119010.0,119000.0,0.87257829]
[1752682842821,0.0002,119010.0,119000.0,1.37319436]
[1752682843017,0.59952,119020.0,119010.0,0.2031906]
[1752682843318,0.59952,119020.0,119010.0,0.91692146]
[1752682843519,0.5,119050.0,119030.0,0.15917]
[1752682843725,0.01663281,119050.0,119040.0,0.85753427]
[1752682843917,0.8096191,119070.0,119060.0,0.22052138]
[1752682844123,0.01663243,119070.0,119060.0,0.77545745]
[1752682844424,0.8289104,119090.0,119080.0,0.2557318]
[1752682844625,0.8189104,119090.0,119080.0,0.27128859]
[1752682844819,0.8189104,119090.0,119080.0,0.26360859]
[1752682844820,0.7869377,119090.0,119080.0,0.26360859]
[1752682845026,0.7869377,119090.0,119080.0,0.28268381]
[1752682845226,0.61905,119090.0,119080.0,0.28268381]
[1752682845428,0.7869378,119090.0,119080.0,0.28268381]
[1752682845729,0.7868578,119090.0,119080.0,0.78329988]
[1752682846226,0.61897,119090.0,119080.0,0.8285178]
[1752682846525,0.7868578,119090.0,119080.0,0.8285178]
[1752682846725,0.61897,119090.0,119080.0,0.8285178]
[1752682847126,0.7868578,119090.0,119080.0,0.8285178]
[1752682847327,0.62097,119090.0,119080.0,0.78329988]
[1752682847524,0.62097,119090.0,119080.0,0.88329988]
[1752682847828,0.62097,119090.0,119080.0,0.78329988]
[1752682848031,0.002,119090.0,119080.0,0.88329988]
[1752682848228,0.60128,119090.0,119080.0,0.88329988]
[1752682848424,0.002,119090.0,119080.0,0.9958126]
[1752682848629,0.002,119090.0,119080.0,0.95059468]
[1752682848829,3.43e-06,119090.0,119080.0,0.95059468]
[1752682849028,3.43e-06,119090.0,119080.0,0.9958126]
[1752682849332,0.02218854,119100.0,119090.0,0.2509278]
[1752682849528,0.00504,119100.0,119090.0,0.75633387]
[1752682849733,0.00504,119100.0,119090.0,0.90118874]
[1752682850227,1.26292726,119130.0,119090.0,0.73330094]
[1752682850429,1.43848896,119130.0,119120.0,0.75629157]
[1752682850734,2.54208896,119130.0,119120.0,0.2295555]
[1752682851128,2.54004896,119130.0,119120.0,0.2456755]
[1752682851430,1.94100896,119130.0,119120.0,0.2456755]
[1752682851634,2.54000896,119130.0,119120.0,0.2456755]
[1752682851830,2.54204896,119130.0,119120.0,0.02453]
[1752682852036,0.2075355,119120.0,119110.0,0.2664512]
[1752682852330,0.2120955,119120.0,119110.0,0.05432]
[1752682852531,0.2121096,119110.0,119100.0,0.07279458]
[1752682852831,1.31168567,119110.0,119100.0,0.01847458]
[1752682853026,0.8110696,119110.0,119100.0,0.18634828]
[1752682853331,0.2121237,119100.0,119090.0,0.1924178]
[1752682853519,0.2121237,119100.0,119090.0,0.2174178]
[1752682853724,0.1898437,119100.0,119090.0,0.2557178]
[1752682853923,0.1898437,119100.0,119090.0,0.2372778]
[1752682854126,0.2121237,119100.0,119090.0,0.2372778]
[1752682854531,0.2121237,119100.0,119090.0,0.2395978]
[1752682854833,0.2121378,119090.0,119080.0,0.40738927]
[1752682855033,1.32872046,119090.0,119080.0,0.29365057]
[1752682855233,1.82872046,119090.0,119080.0,0.29365057]
[1752682855530,0.2296396,119080.0,119070.0,0.167916]
[1752682855729,0.187676,119070.0,119060.0,0.61508998]
[1752682855932,1.28713207,119070.0,119060.0,0.25350968]
[1752682856132,1.28965207,119070.0,119060.0,0.1924491]
[1752682856726,0.789036,119070.0,119060.0,0.1924491]
[1752682856932,0.766756,119070.0,119060.0,0.2262391]
[1752682857130,1.3466619,119080.0,119070.0,0.222236]
[1752682857336,1.3466619,119080.0,119070.0,0.28960754]
[1752682857337,1.9277819,119080.0,119070.0,0.28960754]
[1752682858337,1.9500619,119080.0,119070.0,0.05432]
[1752682858527,0.190196,119070.0,119060.0,0.004]
[1752682858733,1.19081207,119070.0,119060.0,0.1719301]
[1752682858934,1.19081207,119070.0,119060.0,0.1679301]
[1752682859739,0.1902101,119060.0,119050.0,0.04953]
[1752682859935,1.28958617,119060.0,119050.0,0.0002]
[1752682860137,0.69082617,119060.0,119050.0,0.0002]
[1752682860335,0.7889701,119060.0,119050.0,0.0002]
[1752682860644,0.7889701,119060.0,119050.0,0.1681442]
[1752682860833,0.7889701,119060.0,119050.0,0.1926742]
[1752682861335,0.7889701,119060.0,119050.0,0.02473]
[1752682861739,1.28958617,119060.0,119050.0,0.0002]
[1752682862042,0.1881983,119040.0,119030.0,0.32142507]
[1752682862334,0.1881983,119040.0,119030.0,0.05432]
[1752682862335,1.30640182,119040.0,119030.0,0.05432]
[1752682862538,1.30640182,119040.0,119020.0,0.3247494]
[1752682862539,0.1679724,119030.0,119020.0,0.3247494]
[1752682862731,0.69086847,119030.0,119020.0,0.0679908]
[1752682862938,1.19086847,119030.0,119020.0,0.2359773]
[1752682863134,0.6902524,119030.0,119020.0,0.2359773]
[1752682863337,0.6856924,119030.0,119020.0,0.2407673]
[1752682863840,0.6679724,119030.0,119020.0,0.2407673]
[1752682864140,0.6679724,119030.0,119020.0,0.2223065]
[1752682864635,0.5,119030.0,119020.0,0.72292257]
[1752682864849,0.18474575,119040.0,119030.0,0.24120018]
[1752682865039,0.61550745,119040.0,119030.0,0.74181625]
[1752682865244,0.78346575,119040.0,119030.0,0.74681625]
[1752682865449,0.78346575,119040.0,119030.0,0.76202443]
[1752682865650,1.30432182,119040.0,119030.0,0.08843596]
[1752682865951,1.97437782,119040.0,119030.0,0.01890778]
[1752682866357,1.97437782,119040.0,119030.0,0.02390778]
[1752682866957,1.30578575,119040.0,119030.0,0.21641018]
[1752682867148,1.30578575,119040.0,119030.0,0.24620018]
[1752682867548,1.30578575,119040.0,119030.0,0.07822778]
[1752682867843,1.97441782,119040.0,119030.0,0.02953]
[1752682868045,1.80645952,119040.0,119020.0,0.1679852]
[1752682868244,0.1852665,119020.0,119010.0,0.2223186]
[1752682868449,1.28569893,119020.0,119010.0,0.02453]
[1752682868650,0.1852806,119010.0,119000.0,0.32479547]